fUSD/lending_fUSD_20240612
["ID","MTS","AMOUNT","RATE_DAILY","PERIOD"]
[329256352,1718202666765,-500.0,0.00019725,2]
[329256353,1718202666778,-500.0,0.00019725,2]
[329256355,1718202666794,-500.0,0.00019725,2]
[329256357,1718202666807,-500.0,0.00019725,2]
[329256359,1718202666818,-500.0,0.00019725,2]
[329256361,1718202666834,-500.0,0.00019725,2]
[329256363,1718202666845,-500.0,0.00019725,2]
[329256365,1718202666855,-500.0,0.00019725,2]
[329256367,1718202666871,-500.0,0.00019725,2]
[329256369,1718202666882,-500.0,0.00019725,2]
[329256371,1718202666893,-500.0,0.00019726,2]
[329256373,1718202666904,-500.0,0.00019726,2]
[329256375,1718202666915,-500.0,0.00019726,2]
[329256377,1718202666925,-500.0,0.00019726,2]
[329256379,1718202666937,-500.0,0.00019726,2]
[329256381,1718202666948,-500.0,0.00019726,2]
[329256384,1718202666971,-500.0,0.00019726,2]
[329256385,1718202666981,-500.0,0.00019726,2]
[329256387,1718202666994,-500.0,0.00019726,2]
[329256389,1718202667006,-500.0,0.00019726,2]
[329256391,1718202667016,-500.0,0.00019726,2]
[329256394,1718202667028,-526.43702202,0.00019726,2]
[329256395,1718202667046,-274.33,0.00019726,2]
[329256397,1718202667058,-500.0,0.00019726,2]
[329256399,1718202667069,-500.0,0.00019726,2]
[329256401,1718202667092,-500.0,0.00019726,2]
[329256402,1718202667102,-500.0,0.00019726,2]
[329256403,1718202667112,-500.0,0.00019726,2]
[329256405,1718202667122,-500.0,0.00019726,2]
[329256408,1718202667134,-536.68418045,0.00019726,2]
[329256409,1718202667144,-500.0,0.00019726,2]
[329256411,1718202667154,-500.0,0.00019726,2]
[329256413,1718202667164,-500.0,0.00019726,2]
[329256416,1718202667179,-500.0,0.00019726,2]
[329256418,1718202667202,-500.0,0.00019726,2]
[329256420,1718202667216,-530.53,0.00019726,2]
[329256423,1718202667233,-518.4,0.00019726,2]
[329256424,1718202667244,-500.0,0.00019726,2]
[329256426,1718202667257,-500.0,0.00019726,2]
[329256428,1718202667268,-500.0,0.00019726,2]
[329256430,1718202667279,-500.0,0.00019726,2]
[329256432,1718202667290,-257.56,0.00019726,2]
[329256434,1718202667301,-197.0,0.00019726,2]
[329256436,1718202667313,-584.4,0.00019726,2]
[329256439,1718202667323,-500.0,0.00019726,2]
[329256440,1718202667339,-387.88,0.00019726,2]
[329256442,1718202667349,-409.3,0.00019726,2]
[329256444,1718202667359,-500.0,0.00019726,2]
[329256445,1718202667370,-500.0,0.00019726,2]
[329256448,1718202667389,-468.73228011,0.00019726,2]
[329256450,1718202667399,-500.0,0.00019726,2]
[329256452,1718202667413,-500.0,0.00019726,2]
[329256454,1718202667424,-500.0,0.00019726,2]
[329256456,1718202667435,-500.0,0.00019726,2]
[329256458,1718202667445,-265.04,0.00019726,2]
[329256460,1718202667457,-500.0,0.00019726,2]
[329256462,1718202667474,-500.0,0.00019726,2]
[329256464,1718202667485,-500.0,0.00019726,2]
[329256465,1718202667500,-500.0,0.00019726,2]
[329256468,1718202667513,-500.0,0.00019726,2]
[329256469,1718202667525,-577.26,0.00019726,2]
[329256471,1718202667535,-500.0,0.00019726,2]
[329256473,1718202667547,-500.0,0.00019726,2]
[329256474,1718202667561,-500.0,0.00019726,2]
[329256476,1718202667571,-500.0,0.00019726,2]
[329256478,1718202667585,-500.0,0.00019726,2]
[329256480,1718202667595,-500.0,0.00019726,2]
[329256483,1718202667612,-500.0,0.00019726,2]
[329256484,1718202667623,-500.0,0.00019726,2]
[329256487,1718202667667,-608.16,0.00019726,2]
[329256489,1718202667696,-419.42,0.00019726,2]
[329256491,1718202667716,-500.0,0.00019726,2]
[329256493,1718202667738,-389.56810294,0.00019726,2]
[329256495,1718202667761,-500.0,0.00019726,2]
[329256497,1718202667801,-500.0,0.00019726,2]
[329256499,1718202667812,-340.93981787,0.00019726,2]
[329256500,1718202667828,-500.0,0.00019726,2]
[329256502,1718202667851,-500.0,0.00019726,2]
[329256504,1718202667864,-500.0,0.00019726,2]
[329256507,1718202667889,-500.0,0.00019726,2]
[329256508,1718202667900,-500.0,0.00019726,2]
[329256511,1718202667920,-500.0,0.00019726,2]
[329256513,1718202667931,-500.0,0.00019726,2]
[329256515,1718202667944,-500.0,0.00019726,2]
[329256517,1718202667954,-500.0,0.00019726,2]
[329256518,1718202667968,-500.0,0.00019726,2]
[329256520,1718202667983,-3607.003,0.00019736,2]
[329256522,1718202668008,-3728.18370699,0.00019763,2]
[329256525,1718202668022,-159.606,0.00019784,2]
[329256526,1718202668041,-500.0,0.00019861,2]
[329256528,1718202668051,-500.0,0.00019862,2]
[329256529,1718202668064,-500.0,0.00019862,2]
[329256531,1718202668075,-500.0,0.00019862,2]
[329256533,1718202668086,-500.0,0.00019862,2]
[329256535,1718202668096,-209.44108244,0.00019862,2]
[329256537,1718202668107,-500.0,0.00019862,2]
[329256540,1718202668122,-500.0,0.00019862,2]
[329256542,1718202668134,-210.97950895,0.00019862,2]
[329256543,1718202668147,-419.44498423,0.00019862,2]
[329256545,1718202668157,-500.0,0.00019862,2]
[329256547,1718202668168,-500.0,0.00019862,2]
[329256549,1718202668179,-500.0,0.00019862,2]
[329256551,1718202668193,-500.0,0.00019862,2]
[329256553,1718202668205,-500.0,0.00019862,2]
[329256555,1718202668215,-500.0,0.00019862,2]
[329256557,1718202668226,-500.0,0.00019862,2]
[329256559,1718202668239,-228.4,0.00019862,2]
[329256561,1718202668250,-500.0,0.00019862,2]
[329256563,1718202668262,-500.0,0.00019862,2]
[329256565,1718202668273,-500.0,0.00019862,2]
[329256567,1718202668285,-500.0,0.00019862,2]
[329256569,1718202668297,-220.81,0.00019862,2]
[329256571,1718202668307,-327.75895723,0.00019862,2]
[329256573,1718202668319,-500.0,0.00019862,2]
[329256575,1718202668331,-500.0,0.00019862,2]
[329256577,1718202668342,-211.0737104,0.00019863,2]
[329256579,1718202668353,-500.0,0.00019863,2]
[329256580,1718202668367,-500.0,0.00019863,2]
[329256582,1718202668380,-500.0,0.00019863,2]
[329256585,1718202668400,-252.6,0.00019863,2]
[329256587,1718202668412,-552.66,0.00019863,2]
[329256589,1718202668424,-500.0,0.00019863,2]
[329256591,1718202668438,-500.0,0.00019863,2]
[329256592,1718202668451,-500.0,0.00019863,2]
[329256595,1718202668463,-254.83,0.00019863,2]
[329256597,1718202668477,-402.68501743,0.00019863,2]
[329256599,1718202668492,-500.0,0.00019863,2]
[329256601,1718202668508,-500.0,0.00019863,2]
[329256602,1718202668520,-500.0,0.00019863,2]
[329256604,1718202668533,-500.0,0.00019863,2]
[329256606,1718202668548,-500.0,0.00019863,2]
[329256608,1718202668562,-156.54,0.00019863,2]
[329256611,1718202668578,-500.0,0.00019863,2]
[329256613,1718202668604,-500.0,0.00019863,2]
[329256614,1718202668616,-500.0,0.00019863,2]
[329256616,1718202668627,-500.0,0.00019863,2]
[329256618,1718202668659,-186.0,0.00019863,2]
[329256620,1718202668673,-500.0,0.00019863,2]
[329256622,1718202668686,-500.0,0.00019863,2]
[329256624,1718202668700,-500.0,0.00019863,2]
[329256625,1718202668711,-500.0,0.00019863,2]
[329256627,1718202668722,-500.0,0.00019863,2]
[329256629,1718202668737,-500.0,0.00019863,2]
[329256631,1718202668749,-240.69003886,0.00019863,2]
[329256633,1718202668760,-500.0,0.00019863,2]
[329256635,1718202668771,-500.0,0.00019863,2]
[329256637,1718202668782,-500.0,0.00019863,2]
[329256639,1718202668792,-500.0,0.00019863,2]
[329256641,1718202668803,-500.0,0.00019863,2]
[329256643,1718202668815,-500.0,0.00019863,2]
[329256645,1718202668826,-500.0,0.00019863,2]
[329256647,1718202668840,-500.0,0.00019863,2]
[329256648,1718202668876,-500.0,0.00019863,2]
[329256649,1718202668889,-500.0,0.00019863,2]
[329256650,1718202668900,-500.0,0.00019863,2]
[329256651,1718202668910,-500.0,0.00019863,2]
[329256652,1718202668930,-500.0,0.00019863,2]
[329256653,1718202668942,-500.0,0.00019863,2]
[329256654,1718202668953,-500.0,0.00019863,2]
[329256655,1718202668965,-500.0,0.00019863,2]
[329256656,1718202668976,-500.0,0.00019863,2]
[329256657,1718202668987,-500.0,0.00019863,2]
[329256658,1718202669000,-500.0,0.00019863,2]
[329256659,1718202669026,-500.0,0.00019863,2]
[329256660,1718202669054,-594.68,0.00019863,2]
[329256661,1718202669087,-500.0,0.00019863,2]
[329256662,1718202669112,-500.0,0.00019863,2]
[329256663,1718202669140,-500.0,0.00019863,2]
[329256664,1718202669157,-500.0,0.00019863,2]
[329256665,1718202669179,-357.52,0.00019863,2]
[329256666,1718202669200,-159.606,0.00019874,2]
[329256667,1718202669215,-500.0,0.000199,2]
[329256669,1718202669238,-176.98889233,0.000199,2]
[329256670,1718202669269,-207.03041791,0.000199,2]
[329256672,1718202669290,-159.606,0.00019964,2]
[329256674,1718202669302,-500.0,0.00019999,2]
[329256676,1718202669317,-500.0,0.00019999,2]
[329256678,1718202669332,-500.0,0.00019999,2]
[329256680,1718202669345,-500.0,0.00019999,2]
[329256682,1718202669369,-500.0,0.00019999,2]
[329256684,1718202669381,-500.0,0.00019999,2]
[329256685,1718202669397,-500.0,0.00019999,2]
[329256687,1718202669409,-594.82,0.00019999,2]
[329256689,1718202669422,-500.0,0.00019999,2]
[329256691,1718202669450,-500.0,0.00019999,2]
[329256693,1718202669474,-500.0,0.00019999,2]
[329256695,1718202669490,-498.9686927,0.00019999,2]
[329256697,1718202669517,-500.0,0.00019999,2]
[329256699,1718202669531,-216.72,0.00019999,2]
[329256701,1718202669550,-500.0,0.00019999,2]
[329256704,1718202669580,-1444.58735555,0.0002,2]
[329256705,1718202669594,-868.37780365,0.0002,2]
[329256707,1718202669609,-155.41106129,0.0002,2]
[329256709,1718202669656,-430.36,0.0002,2]
[329256711,1718202669669,-500.0,0.0002,2]
[329256714,1718202669691,-500.0,0.0002,2]
[329256716,1718202669703,-500.0,0.0002,2]
[329256718,1718202669723,-500.0,0.0002,2]
[329256720,1718202669739,-500.0,0.0002,2]
[329256722,1718202669761,-500.0,0.0002,2]
[329256723,1718202669773,-500.0,0.0002,2]
[329256725,1718202669786,-500.0,0.0002,2]
[329256726,1718202669803,-500.0,0.0002,2]
[329256728,1718202669816,-500.0,0.0002,2]
[329256730,1718202669826,-500.0,0.0002,2]
[329256732,1718202669845,-500.0,0.0002,2]
[329256734,1718202669857,-500.0,0.0002,2]
[329256736,1718202669871,-500.0,0.0002,2]
[329256738,1718202669892,-366.1,0.0002,2]
[329256739,1718202669903,-263.35214197,0.0002,2]
[329256741,1718202669916,-500.0,0.0002,2]
[329256743,1718202669928,-502.87,0.0002,2]
[329256745,1718202669941,-500.0,0.0002,2]
[329256747,1718202669962,-500.0,0.0002,2]
[329256749,1718202669973,-500.0,0.0002,2]
[329256751,1718202669986,-500.0,0.0002,2]
[329256752,1718202670002,-500.0,0.0002,2]
[329256754,1718202670013,-500.0,0.0002,2]
[329256756,1718202670024,-500.0,0.0002,2]
[329256758,1718202670035,-500.0,0.0002,2]
[329256760,1718202670048,-500.0,0.0002,2]
[329256762,1718202670059,-220.64,0.0002,2]
[329256764,1718202670070,-500.0,0.0002,2]
[329256766,1718202670083,-178.08,0.0002,2]
[329256768,1718202670100,-500.0,0.0002,2]
[329256770,1718202670116,-500.0,0.0002,2]
[329256772,1718202670132,-500.0,0.0002,2]
[329256774,1718202670146,-500.0,0.0002,2]
[329256777,1718202670170,-500.0,0.0002,2]
[329256779,1718202670189,-500.0,0.0002,2]
[329256781,1718202670204,-500.0,0.0002,2]
[329256783,1718202670220,-500.0,0.0002,2]
[329256784,1718202670232,-500.0,0.0002,2]
[329256787,1718202670249,-439.16,0.0002,2]
[329256789,1718202670267,-500.0,0.0002,2]
[329256792,1718202670285,-500.0,0.0002,2]
[329256794,1718202670307,-500.0,0.0002,2]
[329256796,1718202670326,-500.0,0.0002,2]
[329256798,1718202670341,-240.64216882,0.0002,2]
[329256800,1718202670353,-3685.865,0.0002001,2]
[329256802,1718202670365,-226.74152349,0.000201,2]
[329256804,1718202670377,-217.72749607,0.00020136,2]
[329256806,1718202670391,-19299.74303764,0.00020136,2]
[329256808,1718202670404,-500.0,0.00020136,2]
[329256810,1718202670418,-176.45,0.00020136,2]
[329256812,1718202670429,-347.45,0.00020136,2]
[329256814,1718202670446,-500.0,0.00020136,2]
[329256817,1718202670463,-500.0,0.00020136,2]
[329256819,1718202670475,-430.93,0.00020136,2]
[329256821,1718202670487,-500.0,0.00020136,2]
[329256823,1718202670500,-500.0,0.00020136,2]
[329256825,1718202670518,-500.0,0.00020136,2]
[329256827,1718202670541,-218.874191,0.00020136,2]
[329256828,1718202670557,-500.0,0.00020136,2]
[329256831,1718202670576,-599.54,0.00020136,2]
[329256833,1718202670593,-500.0,0.00020136,2]
[329256835,1718202670613,-500.0,0.00020136,2]
[329256838,1718202670625,-500.0,0.00020136,2]
[329256840,1718202670659,-500.0,0.00020136,2]
[329256842,1718202670675,-500.0,0.00020136,2]
[329256844,1718202670690,-507.14345693,0.00020136,2]
[329256846,1718202670706,-500.0,0.00020136,2]
[329256848,1718202670723,-500.0,0.00020136,2]
[329256851,1718202670739,-500.0,0.00020136,2]
[329256853,1718202670757,-500.0,0.00020136,2]
[329256855,1718202670775,-500.0,0.00020136,2]
[329256857,1718202670788,-500.0,0.00020136,2]
[329256859,1718202670803,-371.66,0.00020136,2]
[329256861,1718202670819,-344.04,0.00020136,2]
[329256864,1718202670849,-500.0,0.00020136,2]
[329256866,1718202670863,-211.46,0.00020136,2]
[329256868,1718202670874,-500.0,0.00020136,2]
[329256870,1718202670887,-196.71,0.00020136,2]
[329256872,1718202670904,-500.0,0.00020136,2]
[329256874,1718202670919,-500.0,0.00020136,2]
[329256876,1718202670932,-622.64,0.00020136,2]
[329256878,1718202670948,-500.0,0.00020136,2]
[329256880,1718202670966,-500.0,0.00020136,2]
[329256882,1718202670994,-500.0,0.00020136,2]
[329256885,1718202671009,-584.56,0.00020136,2]
[329256886,1718202671021,-500.0,0.00020136,2]
[329256888,1718202671039,-623.87,0.00020136,2]
[329256890,1718202671051,-500.0,0.00020136,2]
[329256892,1718202671066,-456.4,0.00020136,2]
[329256894,1718202671078,-500.0,0.00020136,2]
[329256897,1718202671095,-500.0,0.00020136,2]
[329256899,1718202671106,-500.0,0.00020136,2]
[329256900,1718202671122,-613.28,0.00020136,2]
[329256902,1718202671135,-500.0,0.00020136,2]
[329256904,1718202671148,-500.0,0.00020136,2]
[329256906,1718202671161,-500.0,0.00020136,2]
[329256908,1718202671178,-500.0,0.00020136,2]
[329256910,1718202671193,-1166.0,0.000202,2]
[329256911,1718202671204,-500.0,0.00020273,2]
[329256913,1718202671216,-500.0,0.00020273,2]
[329256915,1718202671228,-500.0,0.00020273,2]
[329256917,1718202671239,-500.0,0.00020273,2]
[329256919,1718202671255,-500.0,0.00020273,2]
[329256922,1718202671274,-500.0,0.00020273,2]
[329256924,1718202671289,-500.0,0.00020273,2]
[329256926,1718202671301,-500.0,0.00020273,2]
[329256928,1718202671312,-500.0,0.00020273,2]
[329256930,1718202671322,-162.1,0.00020273,2]
[329256932,1718202671334,-500.0,0.00020273,2]
[329256934,1718202671346,-500.0,0.00020273,2]
[329256936,1718202671358,-500.0,0.00020273,2]
[329256938,1718202671368,-245.65,0.00020273,2]
[329256940,1718202671379,-500.0,0.00020273,2]
[329256942,1718202671389,-500.0,0.00020273,2]
[329256944,1718202671400,-500.0,0.00020273,2]
[329256946,1718202671410,-500.0,0.00020273,2]
[329256948,1718202671421,-500.0,0.00020273,2]
[329256950,1718202671432,-500.0,0.00020273,2]
[329256952,1718202671445,-408.62962924,0.00020273,2]
[329256954,1718202671455,-297.44,0.00020273,2]
[329256955,1718202671466,-500.0,0.00020273,2]
[329256957,1718202671477,-500.0,0.00020273,2]
[329256960,1718202671489,-251.52,0.00020273,2]
[329256961,1718202671499,-500.0,0.00020273,2]
[329256963,1718202671510,-349.39,0.00020273,2]
[329256965,1718202671521,-500.0,0.00020273,2]
[329256967,1718202671533,-500.0,0.00020273,2]
[329256968,1718202671545,-500.0,0.00020273,2]
[329256969,1718202671556,-167.32,0.00020273,2]
[329256970,1718202671567,-500.0,0.00020273,2]
[329256971,1718202671578,-500.0,0.00020273,2]
[329256972,1718202671589,-428.12165319,0.00020371,2]
[329256973,1718202671601,-163.91,0.00020401,2]
[329256974,1718202671612,-500.0,0.0002041,2]
[329256975,1718202671624,-500.0,0.0002041,2]
[329256976,1718202671661,-500.0,0.0002041,2]
[329256977,1718202671672,-500.0,0.0002041,2]
[329256978,1718202671683,-500.0,0.0002041,2]
[329256980,1718202671699,-500.0,0.0002041,2]
[329256983,1718202671710,-500.0,0.0002041,2]
[329256985,1718202671721,-500.0,0.0002041,2]
[329256987,1718202671731,-500.0,0.0002041,2]
[329256989,1718202671746,-221.75055454,0.0002041,2]
[329256991,1718202671757,-352.2,0.0002041,2]
[329256993,1718202671768,-500.0,0.0002041,2]
[329256995,1718202671779,-500.0,0.0002041,2]
[329256997,1718202671790,-500.0,0.0002041,2]
[329256999,1718202671802,-500.0,0.0002041,2]
[329257001,1718202671813,-500.0,0.0002041,2]
[329257003,1718202671825,-305.45,0.0002041,2]
[329257005,1718202671837,-500.0,0.0002041,2]
[329257007,1718202671848,-500.0,0.0002041,2]
[329257009,1718202671858,-470.2,0.0002041,2]
[329257011,1718202671869,-334.96,0.0002041,2]
[329257013,1718202671882,-500.0,0.0002041,2]
[329257016,1718202671895,-500.0,0.0002041,2]
[329257017,1718202671906,-500.0,0.0002041,2]
[329257020,1718202671917,-500.0,0.0002041,2]
[329257022,1718202671928,-167.12,0.00020412,2]
[329257024,1718202671940,-1717.14877,0.0002049,2]
[329257026,1718202671953,-323.2,0.00020491,2]
[329257027,1718202671965,-549.13198539,0.000205,2]
[329257028,1718202671976,-291.73657758,0.00020509,2]
[329257031,1718202671988,-384.66,0.00020523,2]
[329257033,1718202672000,-500.0,0.00020547,2]
[329257035,1718202672011,-500.0,0.00020547,2]
[329257037,1718202672024,-263.77,0.00020547,2]
[329257039,1718202672037,-500.0,0.00020547,2]
[329257041,1718202672053,-311.74,0.00020547,2]
[329257043,1718202672069,-500.0,0.00020547,2]
[329257045,1718202672084,-500.0,0.00020547,2]
[329257047,1718202672097,-360.7,0.00020547,2]
[329257048,1718202672110,-500.0,0.00020547,2]
[329257050,1718202672122,-500.0,0.00020547,2]
[329257052,1718202672133,-500.0,0.00020547,2]
[329257055,1718202672148,-500.0,0.00020547,2]
[329257057,1718202672160,-500.0,0.00020547,2]
[329257059,1718202672174,-500.0,0.00020547,2]
[329257061,1718202672187,-435.1,0.00020547,2]
[329257063,1718202672204,-500.0,0.00020547,2]
[329257065,1718202672216,-500.0,0.00020547,2]
[329257067,1718202672228,-500.0,0.00020684,2]
[329257069,1718202672238,-500.0,0.00020684,2]
[329257071,1718202672251,-500.0,0.00020684,2]
[329257073,1718202672265,-500.0,0.00020684,2]
[329257075,1718202672276,-500.0,0.00020684,2]
[329257077,1718202672287,-500.0,0.00020684,2]
[329257079,1718202672297,-500.0,0.00020684,2]
[329257081,1718202672308,-500.0,0.00020684,2]
[329257083,1718202672322,-500.0,0.00020684,2]
[329257086,1718202672341,-500.0,0.00020684,2]
[329257088,1718202672353,-441.0310365,0.00020684,2]
[329257090,1718202672365,-7138.77609652,0.000207,2]
[329257092,1718202672377,-11741.0,0.000207,3]
[329257094,1718202672390,-500.0,0.00020821,2]
[329257096,1718202672405,-458.5,0.00020821,2]
[329257097,1718202672417,-500.0,0.00020821,2]
[329257100,1718202672430,-642.28,0.00020821,2]
[329257102,1718202672450,-500.0,0.00020821,2]
[329257104,1718202672468,-500.0,0.00020821,2]
[329257106,1718202672482,-500.0,0.00020821,2]
[329257108,1718202672494,-500.0,0.00020821,2]
[329257110,1718202672506,-500.0,0.00020821,2]
[329257111,1718202672518,-321.65,0.00020821,2]
[329257114,1718202672538,-173.09,0.00020878,2]
[329257116,1718202672552,-150.066603,0.00020928,2]
[329257118,1718202672564,-1500.0,0.00020951,2]
[329257120,1718202672577,-500.0,0.00020958,2]
[329257122,1718202672589,-500.0,0.00020958,2]
[329257125,1718202672602,-500.0,0.00020958,2]
[329257135,1718202672796,-249.6779917,0.00020958,2]
[329257138,1718202672821,-356.71525285,0.00020958,2]
[329257139,1718202672834,-500.0,0.00020958,2]
[329257140,1718202672845,-778.70803834,0.00021,2]
[329257143,1718202672863,-5000.0,0.00021,2]
[329257144,1718202672880,-1000.0,0.00021,3]
[329257148,1718202672927,-472.0,0.00021,3]
[329257150,1718202672969,-211.0,0.00021,3]
[329257151,1718202672981,-477.0,0.00021,3]
[329257154,1718202672997,-1250.0,0.00021,2]
[329257156,1718202673011,-201.594972,0.00021,2]
[329257158,1718202673029,-493.30112067,0.00021076,2]
[329257160,1718202673047,-500.0,0.00021095,2]
[329257162,1718202673071,-500.0,0.00021095,2]
[329257164,1718202673083,-500.0,0.00021095,2]
[329257166,1718202673094,-500.0,0.00021095,2]
[329257168,1718202673105,-1278.5,0.00021179,2]
[329257170,1718202673115,-2058.05239766,0.000212,2]
[329257172,1718202673126,-11741.0,0.000212,5]
[329257174,1718202673137,-163.91,0.00021209,2]
[329257176,1718202673147,-500.0,0.00021232,2]
[329257178,1718202673170,-500.0,0.00021232,2]
[329257180,1718202673187,-500.0,0.00021232,2]
[329257182,1718202673203,-500.0,0.00021232,2]
[329257184,1718202673213,-347.36,0.00021314,2]
[329257185,1718202673223,-207.0304179,0.00021367,2]
[329257188,1718202673235,-500.0,0.00021369,2]
[329257190,1718202673245,-500.0,0.00021369,2]
[329257192,1718202673261,-500.0,0.00021369,2]
[329257194,1718202673273,-481.63,0.00021369,2]
[329257196,1718202673284,-1000.0,0.00021432,2]
[329257197,1718202673295,-578.38130141,0.0002148,2]
[329257199,1718202673305,-340.44,0.00021506,2]
[329257201,1718202673315,-500.0,0.00021506,2]
[329257203,1718202673326,-500.0,0.00021506,2]
[329257206,1718202673337,-707.028,0.00021527,2]
[329257208,1718202673348,-395.9,0.00021643,2]
[329257210,1718202673367,-500.0,0.00021643,2]
[329257211,1718202673379,-500.0,0.0002178,2]
[329257214,1718202673390,-482.66,0.00021889,2]
[329257216,1718202673401,-500.0,0.00021917,2]
[329257218,1718202673413,-3527.384,0.00021917,2]
[329257219,1718202673423,-453.76,0.00021918,2]
[329257221,1718202673434,-250.0,0.00021918,2]
[329257224,1718202673450,-760.46,0.00021918,2]
[329257226,1718202673463,-813.27,0.0002192,2]
[329257228,1718202673473,-813.27,0.0002192,2]
[329257230,1718202673485,-813.27,0.0002192,2]
[329257232,1718202673496,-291.73657758,0.00021939,2]
[329257233,1718202673507,-192.0,0.00021951,2]
[329257235,1718202673519,-791.01559774,0.00022,2]
[329257238,1718202673530,-240.6183288,0.00022,2]
[329257240,1718202673550,-1062.80857037,0.00022,2]
[329257242,1718202673561,-163.91,0.00022017,2]
[329257244,1718202673572,-300.0,0.00022038,2]
[329257246,1718202673583,-150.0,0.00022038,2]
[329257248,1718202673593,-422.86,0.00022038,2]
[329257250,1718202673607,-526.66,0.00022038,2]
[329257252,1718202673624,-164.28,0.00022038,2]
[329257254,1718202673654,-150.0,0.00022038,2]
[329257256,1718202673670,-157.23,0.00022038,2]
[329257258,1718202673681,-353.61,0.00022038,2]
[329257260,1718202673695,-150.0,0.00022038,2]
[329257262,1718202673708,-526.66,0.00022038,2]
[329257264,1718202673721,-150.0,0.00022038,2]
[329257266,1718202673734,-353.61,0.00022038,2]
[329257268,1718202673745,-316.21,0.00022038,2]
[329257270,1718202673757,-164.28,0.00022038,2]
[329257272,1718202673769,-422.86,0.00022038,2]
[329257274,1718202673783,-150.0,0.00022038,2]
[329257276,1718202673795,-422.86,0.00022038,2]
[329257278,1718202673806,-526.66,0.00022038,2]
[329257280,1718202673818,-164.28,0.00022038,2]
[329257282,1718202673830,-150.0,0.00022038,2]
[329257284,1718202673840,-150.0,0.00022038,2]
[329257286,1718202673851,-353.61,0.00022038,2]
[329257288,1718202673862,-845.72,0.00022038,2]
[329257292,1718202673887,-300.0,0.00022038,2]
[329257294,1718202673898,-150.0,0.00022038,2]
[329257296,1718202673909,-164.28,0.00022038,2]
[329257298,1718202673920,-707.22,0.00022038,2]
[329257300,1718202673932,-150.0,0.00022038,2]
[329257302,1718202673977,-353.61,0.00022038,2]
[329257304,1718202673996,-164.28,0.00022038,2]
[329257306,1718202674011,-422.86,0.00022038,2]
[329257308,1718202674024,-353.61,0.00022038,2]
[329257310,1718202674043,-150.0,0.00022038,2]
[329257312,1718202674061,-150.0,0.00022038,2]
[329257314,1718202674093,-291.99,0.00022038,2]
[329257315,1718202674108,-353.62,0.00022038,2]
[329257317,1718202674123,-150.0,0.00022038,2]
[329257319,1718202674134,-164.28,0.00022038,2]
[329257321,1718202674153,-150.0,0.00022038,2]
[329257322,1718202674166,-500.0,0.00022054,2]
[329257324,1718202674179,-225.66586826,0.0002211,2]